[Event "Late-Titled-Tuesday-Blitz-June-04-2024"]
[Site "Chess.com"]
[Date "2024.06.04"]
[Round "4"]
[White "Jakhongir-Vakhidov"]
[Black "annasargsyan_m"]
[Result "0-1"]
[WhiteElo "2940"]
[BlackElo "2599"]
[TimeControl "180+1"]
[EndTime "14:37:53 PDT"]
[Termination "annasargsyan_m won by resignation"]

1. c4 {[%clk 0:03:00.9]} 1... c6 {[%clk 0:02:56.1]} 2. d4 {[%clk 0:03:00.5]}
2... d5 {[%clk 0:02:57]} 3. Nc3 {[%clk 0:03:00.8]} 3... Nf6 {[%clk 0:02:57.2]}
4. cxd5 {[%clk 0:03:01.3]} 4... cxd5 {[%clk 0:02:58.1]} 5. Bf4 {[%clk
0:03:01.8]} 5... Nc6 {[%clk 0:02:58.2]} 6. e3 {[%clk 0:03:02.4]} 6... Bf5 {[%clk
0:02:58.6]} 7. Nf3 {[%clk 0:03:02.2]} 7... e6 {[%clk 0:02:58.6]} 8. Be2 {[%clk
0:03:02.9]} 8... Bd6 {[%clk 0:02:58.9]} 9. Ne5 {[%clk 0:03:03.4]} 9... Rc8
{[%clk 0:02:56.6]} 10. O-O {[%clk 0:02:56.4]} 10... O-O {[%clk 0:02:57.1]} 11.
Rc1 {[%clk 0:02:49.8]} 11... Bxe5 {[%clk 0:02:57.1]} 12. Bxe5 {[%clk 0:02:50.2]}
12... Nxe5 {[%clk 0:02:56.7]} 13. dxe5 {[%clk 0:02:51.1]} 13... Ne4 {[%clk
0:02:56.8]} 14. Nb5 {[%clk 0:02:46.5]} 14... a6 {[%clk 0:02:47.5]} 15. Nd4
{[%clk 0:02:46]} 15... Bg6 {[%clk 0:02:47.4]} 16. f3 {[%clk 0:02:42.9]} 16...
Nc5 {[%clk 0:02:46.9]} 17. Qd2 {[%clk 0:02:42]} 17... Nd7 {[%clk 0:02:43.3]} 18.
f4 {[%clk 0:02:39.2]} 18... Nc5 {[%clk 0:02:43.7]} 19. Bf3 {[%clk 0:02:37.5]}
19... Qb6 {[%clk 0:02:42.5]} 20. b4 {[%clk 0:02:29.3]} 20... Ne4 {[%clk
0:02:28.8]} 21. Bxe4 {[%clk 0:02:24.6]} 21... Bxe4 {[%clk 0:02:29.7]} 22. a3
{[%clk 0:02:24.5]} 22... h6 {[%clk 0:02:27.9]} 23. h4 {[%clk 0:02:24]} 23... Qd8
{[%clk 0:02:20.1]} 24. g3 {[%clk 0:02:18.7]} 24... Qd7 {[%clk 0:02:19.8]} 25.
Nb3 {[%clk 0:01:56.4]} 25... b6 {[%clk 0:02:13.3]} 26. Qd4 {[%clk 0:01:46.1]}
26... Qa4 {[%clk 0:02:13.1]} 27. Qb2 {[%clk 0:01:41.6]} 27... Qb5 {[%clk
0:02:03.8]} 28. Kf2 {[%clk 0:01:24.6]} 28... a5 {[%clk 0:02:00]} 29. Nd4 {[%clk
0:01:23.7]} 29... Qa4 {[%clk 0:01:58.9]} 30. b5 {[%clk 0:01:18.5]} 30... Bd3
{[%clk 0:01:58.4]} 31. g4 {[%clk 0:01:10.9]} 31... Bxf1 {[%clk 0:01:56.3]} 32.
Rxf1 {[%clk 0:01:11.1]} 32... Rc4 {[%clk 0:01:51.9]} 33. f5 {[%clk 0:01:05.1]}
33... Rfc8 {[%clk 0:01:50.7]} 34. Kg3 {[%clk 0:01:02.9]} 34... Rc3 {[%clk
0:01:47.3]} 35. Rf3 {[%clk 0:00:50.1]} 35... Qc4 {[%clk 0:01:36.2]} 36. Qf2
{[%clk 0:00:44.3]} 36... Qc7 {[%clk 0:01:32.9]} 37. Nc6 {[%clk 0:00:38.8]} 37...
Rxc6 {[%clk 0:01:31.2]} 38. bxc6 {[%clk 0:00:39.7]} 38... Qxe5+ {[%clk
0:01:31.3]} 39. Kh3 {[%clk 0:00:40.3]} 39... Rxc6 {[%clk 0:01:30.2]} 40. fxe6
{[%clk 0:00:38.7]} 40... Qxe6 {[%clk 0:01:30.4]} 41. h5 {[%clk 0:00:36.1]} 41...
Rc4 {[%clk 0:01:28.8]} 42. Rf4 {[%clk 0:00:26.4]} 42... Rc3 {[%clk 0:01:23.6]}
43. Rf3 {[%clk 0:00:26.9]} 43... Qe4 {[%clk 0:01:14.5]} 44. Kg3 {[%clk
0:00:14.5]} 44... Rxa3 {[%clk 0:01:13.9]} 45. Qd2 {[%clk 0:00:08.8]} 45... d4
{[%clk 0:01:12.2]} 46. Kh4 {[%clk 0:00:01.9]} 46... Qxf3 {[%clk 0:01:09.4]} 0-1

[Event "Late-Titled-Tuesday-Blitz-June-04-2024"]
[Site "Chess.com"]
[Date "2024.06.04"]
[Round "4"]
[White "topce"]
[Black "krzyzan94"]
[Result "1-0"]
[WhiteElo "2476"]
[BlackElo "2796"]
[TimeControl "180+1"]
[EndTime "14:37:56 PDT"]
[Termination "topce won on time"]

1. c4 {[%clk 0:02:59.1]} 1... g6 {[%clk 0:02:58.6]} 2. Nc3 {[%clk 0:02:58.4]}
2... Bg7 {[%clk 0:02:59.1]} 3. d4 {[%clk 0:02:58]} 3... c5 {[%clk 0:02:55.3]} 4.
d5 {[%clk 0:02:57.7]} 4... d6 {[%clk 0:02:55.8]} 5. e4 {[%clk 0:02:57.6]} 5...
Nf6 {[%clk 0:02:54.6]} 6. f4 {[%clk 0:02:56.9]} 6... O-O {[%clk 0:02:53.6]} 7.
Nf3 {[%clk 0:02:56.7]} 7... e6 {[%clk 0:02:52.8]} 8. dxe6 {[%clk 0:02:57.6]}
8... Bxe6 {[%clk 0:02:49.1]} 9. Bd3 {[%clk 0:02:58.5]} 9... Nc6 {[%clk
0:02:46.8]} 10. O-O {[%clk 0:02:58.2]} 10... Bg4 {[%clk 0:02:43]} 11. h3 {[%clk
0:02:57.8]} 11... Bxf3 {[%clk 0:02:42.5]} 12. Qxf3 {[%clk 0:02:58.7]} 12... Nd4
{[%clk 0:02:43.3]} 13. Qf2 {[%clk 0:02:58.7]} 13... Re8 {[%clk 0:02:32.2]} 14.
g4 {[%clk 0:02:52.2]} 14... a6 {[%clk 0:02:27.6]} 15. g5 {[%clk 0:02:44.3]}
15... Nh5 {[%clk 0:02:20.9]} 16. Nd5 {[%clk 0:02:41]} 16... b5 {[%clk
0:02:14.2]} 17. Qg2 {[%clk 0:02:19.3]} 17... Rb8 {[%clk 0:02:06.8]} 18. Rb1
{[%clk 0:02:08.2]} 18... Kh8 {[%clk 0:01:50.2]} 19. b3 {[%clk 0:02:07.2]} 19...
bxc4 {[%clk 0:01:45.3]} 20. Bxc4 {[%clk 0:02:03.4]} 20... a5 {[%clk 0:01:43.1]}
21. a4 {[%clk 0:01:56.4]} 21... f6 {[%clk 0:01:19]} 22. f5 {[%clk 0:01:46.7]}
22... gxf5 {[%clk 0:01:03.8]} 23. exf5 {[%clk 0:01:41.5]} 23... fxg5 {[%clk
0:00:44.2]} 24. f6 {[%clk 0:01:34.9]} 24... Nxf6 {[%clk 0:00:27.2]} 25. Bxg5
{[%clk 0:01:32.5]} 25... Rf8 {[%clk 0:00:27.6]} 26. Rbe1 {[%clk 0:01:27.1]}
26... h6 {[%clk 0:00:12.9]} 27. Bh4 {[%clk 0:01:23.2]} 27... Rg8 {[%clk
0:00:08.2]} 28. Kh1 {[%clk 0:01:21]} 28... Nh5 {[%clk 0:00:01.9]} 29. Bxd8
{[%clk 0:01:16.4]} 29... Rbxd8 {[%clk 0:00:02.5]} 30. Ne7 {[%clk 0:01:15.9]}
30... d5 {[%clk 0:00:01.2]} 31. Ng6+ {[%clk 0:01:14]} 31... Kh7 {[%clk
0:00:01.5]} 32. Bd3 {[%clk 0:01:13.9]} 32... c4 {[%clk 0:00:01.8]} 33. bxc4
{[%clk 0:01:11.9]} 33... dxc4 {[%clk 0:00:02.7]} 34. Bb1 {[%clk 0:01:12.5]}
34... c3 {[%clk 0:00:02.4]} 35. Ne7+ {[%clk 0:01:10.4]} 35... Kh8 {[%clk
0:00:02.6]} 36. Nxg8 {[%clk 0:01:10.5]} 36... c2 {[%clk 0:00:02.1]} 37. Bxc2
{[%clk 0:01:09.8]} 37... Rxg8 {[%clk 0:00:01.2]} 38. Bb1 {[%clk 0:01:07.8]}
38... Bf6 {[%clk 0:00:01]} 39. Qxg8+ {[%clk 0:01:05.9]} 39... Kxg8 {[%clk
0:00:01.9]} 40. Rxf6 {[%clk 0:01:05.9]} 40... Nxf6 {[%clk 0:00:02.1]} 41. Ba2+
{[%clk 0:01:05]} 41... Kg7 {[%clk 0:00:02]} 42. Re5 {[%clk 0:01:05]} 1-0

[Event "Late-Titled-Tuesday-Blitz-June-04-2024"]
[Site "Chess.com"]
[Date "2024.06.04"]
[Round "4"]
[White "MaiqMaster"]
[Black "aghasiyevkamal"]
[Result "1-0"]
[WhiteElo "2441"]
[BlackElo "2603"]
[TimeControl "180+1"]
[EndTime "14:37:57 PDT"]
[Termination "MaiqMaster won on time"]

1. e4 {[%clk 0:03:00.9]} 1... c5 {[%clk 0:02:55.7]} 2. Nc3 {[%clk 0:03:00.7]}
2... g6 {[%clk 0:02:54.9]} 3. Nf3 {[%clk 0:02:55.4]} 3... Bg7 {[%clk 0:02:52.2]}
4. d4 {[%clk 0:02:55.7]} 4... cxd4 {[%clk 0:02:52.1]} 5. Nxd4 {[%clk 0:02:56.6]}
5... d6 {[%clk 0:02:50.9]} 6. Be3 {[%clk 0:02:55]} 6... Nf6 {[%clk 0:02:50.5]}
7. Bc4 {[%clk 0:02:53.5]} 7... Nc6 {[%clk 0:02:49.4]} 8. f3 {[%clk 0:02:48.4]}
8... O-O {[%clk 0:02:46.9]} 9. Qd2 {[%clk 0:02:45.3]} 9... Nxd4 {[%clk
0:02:46.3]} 10. Bxd4 {[%clk 0:02:45.4]} 10... Be6 {[%clk 0:02:41.4]} 11. Nd5
{[%clk 0:02:44.2]} 11... Bxd5 {[%clk 0:01:41.8]} 12. exd5 {[%clk 0:02:37.9]}
12... Rc8 {[%clk 0:01:36.4]} 13. Bb3 {[%clk 0:02:37.2]} 13... Nd7 {[%clk
0:01:34.5]} 14. Bxg7 {[%clk 0:02:36.8]} 14... Kxg7 {[%clk 0:01:34.9]} 15. O-O-O
{[%clk 0:02:35.6]} 15... b5 {[%clk 0:01:25.9]} 16. h4 {[%clk 0:02:35]} 16... h5
{[%clk 0:01:25.8]} 17. g4 {[%clk 0:02:34.2]} 17... Rh8 {[%clk 0:01:25.4]} 18.
Qd4+ {[%clk 0:02:30.8]} 18... Kg8 {[%clk 0:01:24.1]} 19. Rhg1 {[%clk 0:02:24.4]}
19... a5 {[%clk 0:01:21.6]} 20. c3 {[%clk 0:02:21.6]} 20... b4 {[%clk
0:01:02.1]} 21. gxh5 {[%clk 0:02:20.1]} 21... Rxh5 {[%clk 0:01:01.7]} 22. Rg5
{[%clk 0:02:20.4]} 22... Rxg5 {[%clk 0:00:55.6]} 23. hxg5 {[%clk 0:02:21.3]}
23... Qb6 {[%clk 0:00:55.5]} 24. Qh4 {[%clk 0:02:16.7]} 24... Qe3+ {[%clk
0:00:52.7]} 25. Kb1 {[%clk 0:02:14.7]} 25... Qe5 {[%clk 0:00:17.7]} 26. Rh1
{[%clk 0:02:00.3]} 26... Qg7 {[%clk 0:00:17.6]} 27. cxb4 {[%clk 0:01:59.6]}
27... axb4 {[%clk 0:00:16.8]} 28. Qxb4 {[%clk 0:02:00.5]} 28... Nc5 {[%clk
0:00:16.8]} 29. Bc2 {[%clk 0:01:59.6]} 29... Qe5 {[%clk 0:00:13.4]} 30. Qh4
{[%clk 0:01:57.9]} 30... Qg7 {[%clk 0:00:13.5]} 31. Ka1 {[%clk 0:01:56.2]} 31...
Rb8 {[%clk 0:00:13.4]} 32. Rb1 {[%clk 0:01:49.1]} 32... Qe5 {[%clk 0:00:13.5]}
33. Qh6 {[%clk 0:01:40.4]} 33... Qg7 {[%clk 0:00:07.1]} 34. Qxg7+ {[%clk
0:01:37.8]} 34... Kxg7 {[%clk 0:00:08]} 35. b4 {[%clk 0:01:38.4]} 35... Na6
{[%clk 0:00:06.3]} 36. b5 {[%clk 0:01:37.6]} 36... Nc5 {[%clk 0:00:06.5]} 37. a4
{[%clk 0:01:37.2]} 37... Ra8 {[%clk 0:00:04.8]} 38. Rb4 {[%clk 0:01:37.3]} 38...
e6 {[%clk 0:00:05.2]} 39. dxe6 {[%clk 0:01:33.8]} 39... fxe6 {[%clk 0:00:06.1]}
40. b6 {[%clk 0:01:33.1]} 40... Nb7 {[%clk 0:00:06]} 41. Kb2 {[%clk 0:01:30.8]}
41... d5 {[%clk 0:00:05.4]} 42. Rb5 {[%clk 0:01:28.1]} 42... Kf7 {[%clk
0:00:05.1]} 43. Kc3 {[%clk 0:01:27.4]} 43... Ke7 {[%clk 0:00:05.4]} 44. Kd4
{[%clk 0:01:26.5]} 44... Kd6 {[%clk 0:00:05.8]} 45. f4 {[%clk 0:01:27.2]} 45...
Rc8 {[%clk 0:00:02.8]} 46. Bxg6 {[%clk 0:01:16.8]} 46... Rc4+ {[%clk 0:00:02.9]}
47. Ke3 {[%clk 0:01:17.4]} 47... Rxa4 {[%clk 0:00:03.4]} 48. Bd3 {[%clk
0:01:17.9]} 48... Ra1 {[%clk 0:00:01.8]} 49. g6 {[%clk 0:01:17.7]} 49... Rg1
{[%clk 0:00:01.8]} 50. Kf2 {[%clk 0:01:15.7]} 1-0

[Event "Late-Titled-Tuesday-Blitz-June-04-2024"]
[Site "Chess.com"]
[Date "2024.06.04"]
[Round "4"]
[White "chess94cu"]
[Black "semchik90"]
[Result "1-0"]
[WhiteElo "2622"]
[BlackElo "2407"]
[TimeControl "180+1"]
[EndTime "14:38:00 PDT"]
[Termination "chess94cu won by checkmate"]

1. d4 {[%clk 0:03:00.9]} 1... d5 {[%clk 0:02:59.8]} 2. c4 {[%clk 0:03:00.9]}
2... c6 {[%clk 0:03:00.3]} 3. Nf3 {[%clk 0:02:57.4]} 3... Nf6 {[%clk 0:03:00.6]}
4. e3 {[%clk 0:02:57.6]} 4... g6 {[%clk 0:03:00.3]} 5. Nc3 {[%clk 0:02:56.3]}
5... Bg7 {[%clk 0:03:00.4]} 6. Be2 {[%clk 0:02:55.7]} 6... O-O {[%clk
0:03:00.6]} 7. O-O {[%clk 0:02:56.4]} 7... dxc4 {[%clk 0:03:00.7]} 8. Bxc4
{[%clk 0:02:57.3]} 8... Bg4 {[%clk 0:03:01]} 9. h3 {[%clk 0:02:56.7]} 9... Bxf3
{[%clk 0:03:01.4]} 10. Qxf3 {[%clk 0:02:57.6]} 10... Nbd7 {[%clk 0:03:01.8]} 11.
Rd1 {[%clk 0:02:57.1]} 11... e5 {[%clk 0:03:02.2]} 12. dxe5 {[%clk 0:02:56.6]}
12... Nxe5 {[%clk 0:03:02.2]} 13. Qe2 {[%clk 0:02:57.3]} 13... Qe7 {[%clk
0:03:02.2]} 14. Bb3 {[%clk 0:02:57.3]} 14... Rad8 {[%clk 0:03:00.5]} 15. Rxd8
{[%clk 0:02:48.1]} 15... Rxd8 {[%clk 0:03:00.1]} 16. e4 {[%clk 0:02:49]} 16...
Nd3 {[%clk 0:02:53.7]} 17. Be3 {[%clk 0:02:37.1]} 17... Nxe4 {[%clk 0:02:41.6]}
18. Bxa7 {[%clk 0:02:34.3]} 18... Bxc3 {[%clk 0:02:12]} 19. bxc3 {[%clk
0:02:32.5]} 19... Ndxf2 {[%clk 0:02:02.5]} 20. Bxf2 {[%clk 0:02:06.1]} 20... Rd2
{[%clk 0:02:01.9]} 21. Qe3 {[%clk 0:02:06.6]} 21... Rxf2 {[%clk 0:01:52.4]} 22.
Re1 {[%clk 0:02:06.9]} 22... Rb2 {[%clk 0:01:02.8]} 23. Qxe4 {[%clk 0:02:04]}
23... Qc5+ {[%clk 0:01:01.2]} 24. Kh1 {[%clk 0:01:58.7]} 24... Qf2 {[%clk
0:01:00.7]} 25. Rd1 {[%clk 0:01:52.2]} 25... Kg7 {[%clk 0:00:53.9]} 26. Qd4+
{[%clk 0:01:51]} 26... Qxd4 {[%clk 0:00:53.5]} 27. Rxd4 {[%clk 0:01:51.8]} 27...
Rf2 {[%clk 0:00:46.9]} 28. Kg1 {[%clk 0:01:50.7]} 28... Rf6 {[%clk 0:00:46.4]}
29. a4 {[%clk 0:01:49.9]} 29... h5 {[%clk 0:00:46]} 30. a5 {[%clk 0:01:49.5]}
30... Rf5 {[%clk 0:00:44.7]} 31. Rd7 {[%clk 0:01:49.7]} 31... Kh6 {[%clk
0:00:41.5]} 32. Rxb7 {[%clk 0:01:48.1]} 32... Rxa5 {[%clk 0:00:41.6]} 33. Bxf7
{[%clk 0:01:46.6]} 33... h4 {[%clk 0:00:39.2]} 34. Rd7 {[%clk 0:01:41]} 34...
Ra1+ {[%clk 0:00:38.9]} 35. Kh2 {[%clk 0:01:40.4]} 35... Rc1 {[%clk 0:00:37.3]}
36. Rd6 {[%clk 0:01:39.4]} 36... Kg7 {[%clk 0:00:36.2]} 37. Bxg6 {[%clk
0:01:37.4]} 37... c5 {[%clk 0:00:36.9]} 38. Bf5 {[%clk 0:01:20.9]} 38... Rxc3
{[%clk 0:00:36.4]} 39. Rc6 {[%clk 0:01:20.7]} 39... Kf7 {[%clk 0:00:35]} 40. Kg1
{[%clk 0:01:20.3]} 40... Ke7 {[%clk 0:00:32.6]} 41. Kf2 {[%clk 0:01:20.3]} 41...
Rc4 {[%clk 0:00:32.4]} 42. Ke3 {[%clk 0:01:18]} 42... Rc3+ {[%clk 0:00:31.7]}
43. Kf4 {[%clk 0:01:17.7]} 43... Rc1 {[%clk 0:00:28.1]} 44. Kg4 {[%clk
0:01:16.3]} 44... c4 {[%clk 0:00:20.6]} 45. Kxh4 {[%clk 0:01:14.9]} 45... c3
{[%clk 0:00:21.2]} 46. g4 {[%clk 0:01:14]} 46... Kd8 {[%clk 0:00:10.8]} 47. Kg5
{[%clk 0:01:13.2]} 47... Ke7 {[%clk 0:00:11.2]} 48. h4 {[%clk 0:01:12.4]} 48...
Kf7 {[%clk 0:00:10.3]} 49. h5 {[%clk 0:01:12.2]} 49... Kg7 {[%clk 0:00:10.5]}
50. h6+ {[%clk 0:01:12.2]} 50... Kf8 {[%clk 0:00:10.9]} 51. Kf6 {[%clk
0:01:11.8]} 51... Ke8 {[%clk 0:00:10.1]} 52. Rc8# {[%clk 0:01:11]} 1-0

[Event "Late-Titled-Tuesday-Blitz-June-04-2024"]
[Site "Chess.com"]
[Date "2024.06.04"]
[Round "4"]
[White "pirulillo"]
[Black "Mikhal867"]
[Result "1-0"]
[WhiteElo "2374"]
[BlackElo "2511"]
[TimeControl "180+1"]
[EndTime "14:38:00 PDT"]
[Termination "pirulillo won by resignation"]

1. e4 {[%clk 0:03:00.9]} 1... g6 {[%clk 0:02:54.3]} 2. d4 {[%clk 0:02:59]} 2...
Bg7 {[%clk 0:02:54.6]} 3. Nc3 {[%clk 0:02:58.6]} 3... d6 {[%clk 0:02:54.8]} 4.
f4 {[%clk 0:02:57.7]} 4... Nf6 {[%clk 0:02:53.5]} 5. a3 {[%clk 0:02:57.4]} 5...
O-O {[%clk 0:02:51.4]} 6. Nf3 {[%clk 0:02:56.6]} 6... Bg4 {[%clk 0:02:36.9]} 7.
h3 {[%clk 0:02:51]} 7... Bxf3 {[%clk 0:02:36.7]} 8. Qxf3 {[%clk 0:02:49.8]} 8...
Nc6 {[%clk 0:02:36.8]} 9. Be3 {[%clk 0:02:47.9]} 9... e5 {[%clk 0:02:35.8]} 10.
fxe5 {[%clk 0:02:43.2]} 10... dxe5 {[%clk 0:02:35.6]} 11. d5 {[%clk 0:02:43.7]}
11... Nd4 {[%clk 0:02:35]} 12. Qf2 {[%clk 0:02:43.5]} 12... Nh5 {[%clk
0:02:24.7]} 13. O-O-O {[%clk 0:02:35.5]} 13... c5 {[%clk 0:02:21.1]} 14. d6
{[%clk 0:02:20]} 14... Qxd6 {[%clk 0:02:15.3]} 15. Nd5 {[%clk 0:02:17.6]} 15...
Nf6 {[%clk 0:02:04.8]} 16. Nxf6+ {[%clk 0:02:15]} 16... Qxf6 {[%clk 0:02:04.5]}
17. c3 {[%clk 0:02:09.5]} 17... Rac8 {[%clk 0:01:48.8]} 18. Qxf6 {[%clk
0:01:59.6]} 18... Bxf6 {[%clk 0:01:47.9]} 19. Bh6 {[%clk 0:02:00.2]} 19... Ne6
{[%clk 0:01:19]} 20. Bxf8 {[%clk 0:01:56.3]} 20... Kxf8 {[%clk 0:01:19.4]} 21.
Bc4 {[%clk 0:01:54.5]} 21... Nf4 {[%clk 0:01:17.1]} 22. g3 {[%clk 0:01:50.2]}
22... Nh5 {[%clk 0:01:14.9]} 23. Rd7 {[%clk 0:01:42.4]} 23... Be7 {[%clk
0:01:05.5]} 24. Rf1 {[%clk 0:01:37.9]} 24... f6 {[%clk 0:01:03.8]} 25. Rf3
{[%clk 0:01:32.9]} 25... Rb8 {[%clk 0:00:57.8]} 26. Bd5 {[%clk 0:01:21.2]} 26...
b5 {[%clk 0:00:51.4]} 27. Rxa7 {[%clk 0:01:18.7]} 27... b4 {[%clk 0:00:51.7]}
28. axb4 {[%clk 0:01:13.5]} 28... cxb4 {[%clk 0:00:51.7]} 29. c4 {[%clk
0:01:14.2]} 29... Bc5 {[%clk 0:00:21.4]} 30. Rxh7 {[%clk 0:01:11]} 30... Rb6
{[%clk 0:00:19.1]} 31. Rc7 {[%clk 0:01:02.4]} 31... Bd4 {[%clk 0:00:18.6]} 32.
Rb3 {[%clk 0:00:45.2]} 32... Ra6 {[%clk 0:00:18]} 33. Rxb4 {[%clk 0:00:42.9]}
33... Ra1+ {[%clk 0:00:14.9]} 34. Kc2 {[%clk 0:00:42.7]} 34... Ba7 {[%clk
0:00:02.8]} 35. Rbb7 {[%clk 0:00:36.4]} 1-0

[Event "Late-Titled-Tuesday-Blitz-June-04-2024"]
[Site "Chess.com"]
[Date "2024.06.04"]
[Round "4"]
[White "Faqade"]
[Black "talaicito"]
[Result "1-0"]
[WhiteElo "2593"]
[BlackElo "2196"]
[TimeControl "180+1"]
[EndTime "14:38:01 PDT"]
[Termination "Faqade won by resignation"]

1. d4 {[%clk 0:03:00.9]} 1... e6 {[%clk 0:02:59.9]} 2. Nf3 {[%clk 0:02:58.8]}
2... f5 {[%clk 0:03:00.4]} 3. g3 {[%clk 0:02:58.4]} 3... Nf6 {[%clk 0:03:01]} 4.
Bg2 {[%clk 0:02:58.5]} 4... Be7 {[%clk 0:03:01.9]} 5. O-O {[%clk 0:02:58.5]}
5... O-O {[%clk 0:03:02.5]} 6. c4 {[%clk 0:02:57.3]} 6... d6 {[%clk 0:03:03.4]}
7. Nc3 {[%clk 0:02:55.5]} 7... a5 {[%clk 0:03:03.9]} 8. Re1 {[%clk 0:02:54.2]}
8... Ne4 {[%clk 0:03:03.7]} 9. d5 {[%clk 0:02:49.7]} 9... Nxc3 {[%clk
0:03:00.2]} 10. bxc3 {[%clk 0:02:50.3]} 10... e5 {[%clk 0:03:01]} 11. e4 {[%clk
0:02:49.9]} 11... f4 {[%clk 0:02:54.2]} 12. gxf4 {[%clk 0:02:48.7]} 12... exf4
{[%clk 0:02:53.5]} 13. e5 {[%clk 0:02:49.4]} 13... dxe5 {[%clk 0:02:49.9]} 14.
Nxe5 {[%clk 0:02:48.7]} 14... Bd6 {[%clk 0:02:33.2]} 15. c5 {[%clk 0:02:25.1]}
15... Bxe5 {[%clk 0:02:20.2]} 16. Rxe5 {[%clk 0:02:26]} 16... Nd7 {[%clk
0:02:20.1]} 17. Re1 {[%clk 0:02:17.1]} 17... Nxc5 {[%clk 0:02:17.8]} 18. Ba3
{[%clk 0:02:16.9]} 18... Qd6 {[%clk 0:02:12.7]} 19. Qd4 {[%clk 0:01:53.8]} 19...
b6 {[%clk 0:02:09.6]} 20. Bf3 {[%clk 0:01:54.1]} 20... Bd7 {[%clk 0:01:48.7]}
21. c4 {[%clk 0:01:45.3]} 21... Rae8 {[%clk 0:01:37.5]} 22. Kh1 {[%clk 0:01:43]}
22... Rxe1+ {[%clk 0:01:25.2]} 23. Rxe1 {[%clk 0:01:43.9]} 23... Re8 {[%clk
0:01:24.8]} 24. Rg1 {[%clk 0:01:42.8]} 24... Re7 {[%clk 0:01:15.5]} 25. Bb2
{[%clk 0:01:36.5]} 25... Qh6 {[%clk 0:01:14.3]} 26. d6 {[%clk 0:01:33.4]} 26...
cxd6 {[%clk 0:01:13.4]} 27. Qd5+ {[%clk 0:01:30.8]} 27... Kf8 {[%clk 0:01:08.8]}
28. Qa8+ {[%clk 0:01:14.2]} 28... Re8 {[%clk 0:01:08.7]} 29. Qa7 {[%clk
0:01:10.5]} 29... d5 {[%clk 0:00:22.9]} 30. Bxg7+ {[%clk 0:01:01.7]} 30... Qxg7
{[%clk 0:00:20.9]} 31. Rxg7 {[%clk 0:01:02.6]} 31... Kxg7 {[%clk 0:00:20.8]} 32.
cxd5 {[%clk 0:00:48.3]} 32... Kf8 {[%clk 0:00:18.1]} 33. Qxb6 {[%clk 0:00:47.6]}
33... Nd3 {[%clk 0:00:15.6]} 34. Qf6+ {[%clk 0:00:40.8]} 34... Kg8 {[%clk
0:00:15]} 35. d6 {[%clk 0:00:36.2]} 35... Be6 {[%clk 0:00:12.4]} 36. d7 {[%clk
0:00:35.6]} 36... Nxf2+ {[%clk 0:00:10.1]} 37. Kg2 {[%clk 0:00:34.8]} 37... Bxd7
{[%clk 0:00:08.8]} 38. Bd5+ {[%clk 0:00:34.3]} 1-0

[Event "Late-Titled-Tuesday-Blitz-June-04-2024"]
[Site "Chess.com"]
[Date "2024.06.04"]
[Round "4"]
[White "hansen"]
[Black "ncofre98"]
[Result "0-1"]
[WhiteElo "3034"]
[BlackElo "2604"]
[TimeControl "180+1"]
[EndTime "14:38:05 PDT"]
[Termination "ncofre98 won on time"]

1. d4 {[%clk 0:03:00.9]} 1... Nf6 {[%clk 0:02:59.4]} 2. c4 {[%clk 0:02:57.4]}
2... c5 {[%clk 0:02:58.8]} 3. d5 {[%clk 0:02:57.3]} 3... e6 {[%clk 0:02:59.1]}
4. Nc3 {[%clk 0:02:56.1]} 4... exd5 {[%clk 0:02:59.6]} 5. cxd5 {[%clk 0:02:57]}
5... d6 {[%clk 0:03:00]} 6. Nf3 {[%clk 0:02:56]} 6... g6 {[%clk 0:03:00.3]} 7.
Nd2 {[%clk 0:02:52.1]} 7... Bg7 {[%clk 0:03:00.4]} 8. e4 {[%clk 0:02:51.2]} 8...
O-O {[%clk 0:03:00.2]} 9. Be2 {[%clk 0:02:51.9]} 9... Re8 {[%clk 0:03:00.1]} 10.
O-O {[%clk 0:02:52.1]} 10... Na6 {[%clk 0:03:00.3]} 11. Re1 {[%clk 0:02:49.4]}
11... Nc7 {[%clk 0:02:59.6]} 12. a4 {[%clk 0:02:47.5]} 12... b6 {[%clk
0:02:58.6]} 13. Ra3 {[%clk 0:02:40.5]} 13... Rb8 {[%clk 0:02:42.7]} 14. Bb5
{[%clk 0:02:36.5]} 14... Bd7 {[%clk 0:02:12.4]} 15. Nc4 {[%clk 0:02:35.2]} 15...
a6 {[%clk 0:02:12.2]} 16. Bxd7 {[%clk 0:02:16.2]} 16... Qxd7 {[%clk 0:02:12.3]}
17. e5 {[%clk 0:01:42.5]} 17... dxe5 {[%clk 0:02:05.5]} 18. d6 {[%clk
0:01:41.6]} 18... Ne6 {[%clk 0:01:03.8]} 19. Nxe5 {[%clk 0:01:40.9]} 19... Qb7
{[%clk 0:01:02.3]} 20. h3 {[%clk 0:00:50.3]} 20... Rbd8 {[%clk 0:00:39.4]} 21.
Nc4 {[%clk 0:00:12.3]} 21... Qc6 {[%clk 0:00:21.4]} 22. Rb3 {[%clk 0:00:09.4]}
22... Nd7 {[%clk 0:00:19.7]} 23. Nd5 {[%clk 0:00:08.6]} 23... b5 {[%clk
0:00:08.8]} 24. axb5 {[%clk 0:00:07.3]} 24... axb5 {[%clk 0:00:09.7]} 25. Ne7+
{[%clk 0:00:04.7]} 25... Rxe7 {[%clk 0:00:10.1]} 26. dxe7 {[%clk 0:00:05.6]}
26... Re8 {[%clk 0:00:09.7]} 0-1